{"text_format":"3","workbook":"xlsx","n_sheets":17,"sheets":["FINAL SUMMARY","BAMBANANI","JACOB MDLULI","MAKOKO ","MALEKUTU ","SAKHILE ","VUTSELANI","CASTEEL","D G MASHEGO","DUMISANI","HLANGALEZWE","LEKANANG","LUKA","M O MASHEGO","M P MOKOENA","MARIPE","MATHUPA"],"read":"whole","date_system":"1900"}

{"sheet":"FINAL SUMMARY","index":0,"n_rows":26,"n_cols":5,"rows_kept":26}
[]
[]
[null,"MPDOE - MAINTENANCE PROJECT - CLUSTER 3 - ACTIVITY SCHEDULE"]
[null,"FINAL SUMMARY OF COSTS","BUILDING","PROFESSIONAL\nFEES","TOTAL"]
[1,"BAMBANANI PRIMARY SCHOOL",{"$f":"BAMBANANI!D60","v":0},null,{"$f":"C5+D5","v":0}]
[2,"JACOB MDLULI SECONDARY SCHOOL",{"$f":"'JACOB MDLULI'!D79","v":0},null,0]
[3,"MAKOKO PRIMARY SCHOOL",{"$f":"'MAKOKO '!D75","v":0},null,0]
[4,"MALEKUTU PRIMARY SCHOOL",{"$f":"'MALEKUTU '!D78","v":0},null,0]
[5,"SAKHILE SECONDARY SCHOOL ",{"$f":"'SAKHILE '!D35","v":0},null,0]
[6,"VUTSELANI  PRIMARY SCHOOL",{"$f":"VUTSELANI!D64","v":0},null,0]
[7,"CASTEEL PRIMARY SCHOOL",{"$f":"CASTEEL!D23","v":0},null,0]
[8,"DG MASHEGO PRIMARY SCHOOL",{"$f":"'D G MASHEGO'!D23","v":0},null,0]
[9,"DUMISANI HIGH SCHOOL",{"$f":"DUMISANI!D23","v":0},null,0]
[10,"HLANGALEZWE PRIMARY SCHOOL",{"$f":"HLANGALEZWE!D23","v":0},null,0]
[11,"LEKANANG PRIMARY SCHOOL",{"$f":"LEKANANG!D23","v":0},null,0]
[12,"LUKA SENIOR SECONDARY SCHOOL",{"$f":"LUKA!D23","v":0},null,0]
[13,"M.O. MASHEGO LOWER PRIMARY SCHOOL",{"$f":"'M O MASHEGO'!D23","v":0},null,0]
[14,"M.P. MOKOENA PRIMARY SCHOOL",{"$f":"'M P MOKOENA'!D23","v":0},null,0]
[15,"MARIPE SENIOR SECONDARY SCHOOL",{"$f":"MARIPE!D23","v":0},null,0]
[16,"MATHUPA LOWER AND HIGHER PRIMARY SCHOOL ",{"$f":"MATHUPA!D23","v":0},null,0]
[]
[]
[]
[null,"Sub-Total",{"$f":"SUM(C5:C23)","v":0},{"$f":"SUM(D5:D23)","v":0},{"$f":"SUM(E5:E23)","v":0}]
[null,"VAT at 15%",{"$f":"C24*15%","v":0},{"$f":"D24*15%","v":0},0]
[null,"TOTAL CARRIED TO FORM OF OFFER & ACCEPTANCE",{"$f":"SUM(C24:C25)","v":0},{"$f":"SUM(D24:D25)","v":0},0]

{"sheet":"BAMBANANI","index":1,"n_rows":60,"n_cols":4,"rows_kept":60,"merged":[[0,0,0,3],[1,0,1,3]]}
[]
["BAMBANANI PRIMARY SCHOOL"]
["REF","SCOPE","UNIT","PRICE (Excl. VAT)"]
[null,"Basic Services: Demolition of 5 pit toilets. Provision of water (borehole)and repair of fence and electricity.\nOther Facilities: Renovation and refurbishment of 20 classrooms"]
[]
[null,"BUILDING WORKS",null,{"$f":"SUM(D11:D58)","v":0}]
[{"v":1,"d":"1.00"},"DEMOLITION OF  EXISTING TOILETS"]
[null,"Demolition of existing toilets, including the carting away from site all rubble and including rehabilitating and backfilling redundant pits where applicable","Item"]
[]
[{"v":2,"d":"2.00"},"ALTERATIONS"]
[null,"Removal of existing work including disposal from site, etc.","Item"]
[null,"Repairs and making good of finishes, etc. (Beamfilling, Screed, Plaster Allowance)","Item"]
[null,"Cleaning of all classrooms including ceilings","Item"]
[null,"Servicing existing sanitary fittings, accessories,doors, windows, etc","Item"]
[]
[{"v":3,"d":"3.00"},"CARPENTRY AND JOINERY"]
[null,"Supply and installation of skirtings, doors, pinning boards, etc.","Item"]
[]
[{"v":4,"d":"4.00"},"CEILINGS, PARTITIONS AND ACCESS FLOORING"]
[null,"Installation of ceilings, including cornices, trap doors, etc","Item"]
[]
[{"v":5,"d":"5.00"},"IRONMONGERY"]
[null,"Door and window components, etc","Item"]
[]
[{"v":6,"d":"6.00"},"METALWORK"]
[null,"Steel door frames, doors, gates, balustrading, handrails, etc","Item"]
[]
[{"v":7,"d":"7.00"},"PLASTERING"]
[null,"Internal, external wall plaster and floor screeds, etc","Item"]
[]
[{"v":8,"d":"8.00"},"GLAZING"]
[null,"3mm clear glass window panes","Item"]
[]
[{"v":9,"d":"9.00"},"TILING"]
[null,"Tiling to floors, skirtings, etc","Item"]
[]
[{"v":10,"d":"10.00"},"PAINTWORK"]
[null,"All paintwork to internal and external walls, including paintwork to ceilings, doors and frames, etc.","Item"]
[]
[{"v":11,"d":"11.00"},"EXTERNAL WORKS"]
[null,"Provision for stormwater channels, rainwater downpipes, eaves gutters, etc.","Item"]
[null,"Perimeter fencing, etc","Item"]
[]
[{"v":12,"d":"12.00"},"ELECTRICAL WORKS"]
[null,"Inspection and refurbishment of existing electrical works, complete including  the issuing of CoC.","Item"]
[]
[{"v":13,"d":"13.00"},"WATER PROVISION"]
[null,"Provide boreholes including sinking/drilling, testing and equipping with adequate capacity pump and all accessories and including all pipework to connect up to the elevated tanks, etc","Item"]
[]
[{"v":14,"d":"14.00"},"TEMPORARY CLASSROOMS"]
[null,"Budgetary allowance for temporary classrooms ","Item"]
[]
[{"v":15,"d":"15.00"},"PRELIMINARIES AND GENERAL"]
[null,"Contractor to allow for related P&G costs ","Item"]
[]
[{"v":16,"d":"16.00"},"CONTENGENCIES"]
[null,"Add 10% Contingencies to be used at client's discretion","Item"]
[]
[]
[null,"Total Carried to Final Summary",null,{"$f":"D6","v":0}]

{"sheet":"JACOB MDLULI","index":2,"n_rows":79,"n_cols":4,"rows_kept":79,"merged":[[0,0,0,3],[1,0,1,3]]}
[]
["JACOB MDLULI PRIMARY SCHOOL"]
["REF","SCOPE","UNIT","PRICE (Excl. VAT)"]
[null,"Classrooms (10) Replacement of roof trusses and roof sheeting for 2 classrooms, Sealing roof leakages on 8 classrooms, Painting of walls.\nReplacement of damaged ceiling, Replacement of 10 doors. Glazing , Fixing electrical works"]
[]
[null,"BUILDING WORKS",null,{"$f":"SUM(D12:D77)","v":0}]
[{"v":1,"d":"1.00"},"DEMOLITION "]
[null,"Demolition of existing asbestos roofs by an approved asbestos contractor, including the carting away from site all rubble and including cleaning, disinfecting, etc all in accordance with OHS and Asbestos Regulation, 2001","Item"]
[null,"Partial demolition of a building as required, scope to be verified on site","Item"]
[]
[{"v":2,"d":"2.00"},"ALTERATIONS"]
[null,"Removal of existing work including disposal from site, etc.","Item"]
[null,"Repairs and making good of finishes, etc. (Beamfilling, Screed, Plaster Allowance)","Item"]
[null,"Cleaning of all classrooms including ceilings","Item"]
[null,"Servicing existing sanitary fittings, accessories,doors, windows, etc","Item"]
[]
[{"v":3,"d":"3.00"},"EARTHWORKS"]
[null,"Excavation or filling under solid floors, disposal of excavted material, compaction, ant proofing, etc","Item"]
[]
[{"v":4,"d":"4.00"},"CONCRETE, FORMWORK AND REINFORCEMENT"]
[null,"Surface beds, mesh reinforcing, expansion joints, thickening out of surface bed under walls and at edges, power floating, broomed finish, etc","Item"]
[]
[{"v":5,"d":"5.00"},"MASONRY"]
[null,"Brickwork, etc","Item"]
[]
[{"v":6,"d":"6.00"},"WATERPROOFING"]
[null,"Waterproofing to surface beds, etc. ","Item"]
[null,"Waterproofing to roofs, etc. ","Item"]
[]
[{"v":7,"d":"7.00"},"ROOF COVERING, ETC"]
[null,"Roof sheeeting including ridge covers, etc","Item"]
[]
[{"v":8,"d":"8.00"},"CARPENTRY AND JOINERY"]
[null,"Roof construction including trusses, rafters, binders, hangers, hips and valley rafters and ridge boards , etc","Item"]
[null,"Supply and installation of skirtings, pinning boards, handrails, etc.","Item"]
[null,"Supply and installation of doors, door frames, etc","Item"]
[]
[{"v":9,"d":"9.00"},"CEILINGS, PARTITIONS AND ACCESS FLOORING"]
[null,"Installation of ceilings, including cornices, trap doors, etc","Item"]
[]
[{"v":10,"d":"10.00"},"IRONMONGERY"]
[null,"Door and window components, etc","Item"]
[]
[{"v":11,"d":"11.00"},"METALWORK"]
[null,"Steel door frames, doors, gates, windows, balustrading, handrails, etc","Item"]
[]
[{"v":12,"d":"12.00"},"PLASTERING"]
[null,"Internal, external wall plaster and floor screeds, etc","Item"]
[]
[{"v":13,"d":"13.00"},"GLAZING"]
[null,"3mm clear glass window panes","Item"]
[]
[{"v":14,"d":"14.00"},"PAINTWORK"]
[null,"All paintwork to internal and external walls, including paintwork to ceilings, doors and frames, etc.","Item"]
[]
[{"v":15,"d":"15.00"},"EXTERNAL WORKS"]
[null,"Provision for stormwater channels, rainwater downpipes, eaves gutters, etc.","Item"]
[null,"Perimeter fencing, etc","Item"]
[]
[{"v":16,"d":"16.00"},"ELECTRICAL WORKS"]
[null,"Inspection and refurbishment of existing electrical works, complete including  the issuing of CoC.","Item"]
[]
[{"v":17,"d":"17.00"},"DIRECTIONAL SIGNAGE"]
[null,"Provide directional signage, etc","Item"]
[]
[{"v":18,"d":"18.00"},"STRUCTURAL MAINTENANCE"]
[null,"Budgetary allowance for structural maintenance","Item"]
[]
[{"v":19,"d":"19.00"},"TEMPORARY CLASSROOMS"]
[null,"Budgetary allowance for temporary classrooms ","Item"]
[]
[{"v":20,"d":"20.00"},"PRELIMINARIES AND GENERAL"]
[null,"Contractor to allow for related P&G costs ","Item"]
[]
[{"v":21,"d":"21.00"},"CONTENGENCIES"]
[null,"Add 10% Contingencies to be used at client's discretion","Item"]
[]
[]
[null,"Total Carried to Final Summary",null,{"$f":"D6","v":0}]

{"sheet":"MAKOKO ","index":3,"n_rows":75,"n_cols":4,"rows_kept":75,"merged":[[0,0,0,3],[1,0,1,3]]}
[]
["MAKOKO PRIMARY SCHOOL"]
["REF","SCOPE","UNIT","PRICE (Excl. VAT)"]
[null,"Replacement of roof trusses and roof sheeting on 5 classes, Sealing roof leakages on 09 classes moisture. The roof be removed and replaced, along with the ceilings and electrical connections. Fixing electrical works on all classes, Replacement of ceiling, Replacement of 14 doors, Painting of internal and external walls"]
[]
[null,"BUILDING WORKS",null,{"$f":"SUM(D11:D73)","v":0}]
[{"v":1,"d":"1.00"},"DEMOLITION "]
[null,"Partial demolition of a building as required, scope to be verified on site","Item"]
[]
[{"v":2,"d":"2.00"},"ALTERATIONS"]
[null,"Removal of existing work including disposal from site, etc.","Item"]
[null,"Repairs and making good of finishes, etc. (Beamfilling, Screed, Plaster Allowance)","Item"]
[null,"Cleaning of all classrooms including ceilings","Item"]
[null,"Servicing existing sanitary fittings, accessories,doors, windows, etc","Item"]
[]
[{"v":3,"d":"3.00"},"EARTHWORKS"]
[null,"Excavation or filling under solid floors, disposal of excavted material, compaction, ant proofing, etc","Item"]
[]
[{"v":4,"d":"4.00"},"CONCRETE, FORMWORK AND REINFORCEMENT"]
[null,"Surface beds, mesh reinforcing, expansion joints, thickening out of surface bed under walls and at edges, power floating, broomed finish, etc","Item"]
[]
[{"v":5,"d":"5.00"},"MASONRY"]
[null,"Brickwork, etc","Item"]
[]
[{"v":6,"d":"6.00"},"WATERPROOFING"]
[null,"Waterproofing to surface beds, etc. ","Item"]
[null,"Waterproofing to roofs, etc. ","Item"]
[]
[{"v":7,"d":"7.00"},"ROOF COVERING, ETC"]
[null,"Roof sheeeting including ridge covers, etc","Item"]
[]
[{"v":8,"d":"8.00"},"CARPENTRY AND JOINERY"]
[null,"Roof construction including trusses, rafters, binders, hangers, hips and valley rafters and ridge boards , etc","Item"]
[null,"Supply and installation of skirtings, pinning boards, handrails, etc.","Item"]
[null,"Supply and installation of doors, door frames, etc","Item"]
[]
[{"v":9,"d":"9.00"},"CEILINGS, PARTITIONS AND ACCESS FLOORING"]
[null,"Installation of ceilings, including cornices, trap doors, etc","Item"]
[]
[{"v":10,"d":"10.00"},"IRONMONGERY"]
[null,"Door and window components, etc","Item"]
[]
[{"v":11,"d":"11.00"},"METALWORK"]
[null,"Steel door frames, doors, gates, windows, balustrading, handrails, etc","Item"]
[]
[{"v":12,"d":"12.00"},"PLASTERING"]
[null,"Internal, external wall plaster and floor screeds, etc","Item"]
[]
[{"v":13,"d":"13.00"},"GLAZING"]
[null,"3mm clear glass window panes","Item"]
[]
[{"v":14,"d":"14.00"},"PAINTWORK"]
[null,"All paintwork to internal and external walls, including paintwork to ceilings, doors and frames, etc.","Item"]
[]
[{"v":15,"d":"15.00"},"EXTERNAL WORKS"]
[null,"Provision for stormwater channels, rainwater downpipes, eaves gutters, etc.","Item"]
[null,"Perimeter fencing, etc","Item"]
[]
[{"v":16,"d":"16.00"},"ELECTRICAL WORKS"]
[null,"Inspection and refurbishment of existing electrical works, complete including  the issuing of CoC.","Item"]
[]
[{"v":17,"d":"17.00"},"DIRECTIONAL SIGNAGE"]
[null,"Provide directional signage, etc","Item"]
[]
[{"v":18,"d":"18.00"},"TEMPORARY CLASSROOMS"]
[null,"Budgetary allowance for temporary classrooms ","Item"]
[]
[{"v":19,"d":"19.00"},"PRELIMINARIES AND GENERAL"]
[null,"Contractor to allow for related P&G costs ","Item"]
[]
[{"v":20,"d":"20.00"},"CONTENGENCIES"]
[null,"Add 10% Contingencies to be used at client's discretion","Item"]
[]
[]
[null,"Total Carried to Final Summary",null,{"$f":"D6","v":0}]

{"sheet":"MALEKUTU ","index":4,"n_rows":78,"n_cols":4,"rows_kept":78,"merged":[[0,0,0,3],[1,0,1,3]]}
[]
["MALEKUTU PRIMARY SCHOOL"]
["REF","SCOPE","UNIT","PRICE (Excl. VAT)"]
[null,"Renovations of 12 classroooms ceilings"]
[]
[null,"BUILDING WORKS",null,{"$f":"SUM(D11:D76)","v":0}]
[{"v":1,"d":"1.00"},"DEMOLITION "]
[null,"Partial demolition of a building as required, scope to be verified on site","Item"]
[]
[{"v":2,"d":"2.00"},"ALTERATIONS"]
[null,"Removal of existing work including disposal from site, etc.","Item"]
[null,"Repairs and making good of finishes, etc. (Beamfilling, Screed, Plaster Allowance)","Item"]
[null,"Cleaning of all classrooms including ceilings","Item"]
[null,"Servicing existing sanitary fittings, accessories,doors, windows, etc","Item"]
[]
[{"v":3,"d":"3.00"},"EARTHWORKS"]
[null,"Excavation or filling under solid floors, disposal of excavted material, compaction, ant proofing, etc","Item"]
[]
[{"v":4,"d":"4.00"},"CONCRETE, FORMWORK AND REINFORCEMENT"]
[null,"Surface beds, mesh reinforcing, expansion joints, thickening out of surface bed under walls and at edges, power floating, broomed finish, etc","Item"]
[]
[{"v":5,"d":"5.00"},"MASONRY"]
[null,"Brickwork, etc","Item"]
[]
[{"v":6,"d":"6.00"},"WATERPROOFING"]
[null,"Waterproofing to surface beds, etc. ","Item"]
[null,"Waterproofing to roofs, etc. ","Item"]
[]
[{"v":7,"d":"7.00"},"ROOF COVERING, ETC"]
[null,"Roof sheeeting including ridge covers, etc","Item"]
[]
[{"v":8,"d":"8.00"},"CARPENTRY AND JOINERY"]
[null,"Roof construction including trusses, rafters, binders, hangers, hips and valley rafters and ridge boards , etc","Item"]
[null,"Supply and installation of skirtings, pinning boards, handrails, etc.","Item"]
[null,"Supply and installation of doors, door frames, etc","Item"]
[]
[{"v":9,"d":"9.00"},"CEILINGS, PARTITIONS AND ACCESS FLOORING"]
[null,"Installation of ceilings, including cornices, trap doors, etc","Item"]
[]
[{"v":10,"d":"10.00"},"IRONMONGERY"]
[null,"Door and window components, etc","Item"]
[]
[{"v":11,"d":"11.00"},"METALWORK"]
[null,"Steel door frames, doors, gates, windows, balustrading, handrails, etc","Item"]
[]
[{"v":12,"d":"12.00"},"PLASTERING"]
[null,"Internal, external wall plaster and floor screeds, etc","Item"]
[]
[{"v":13,"d":"13.00"},"GLAZING"]
[null,"3mm clear glass window panes","Item"]
[]
[{"v":14,"d":"14.00"},"PAINTWORK"]
[null,"All paintwork to internal and external walls, including paintwork to ceilings, doors and frames, etc.","Item"]
[]
[{"v":15,"d":"15.00"},"EXTERNAL WORKS"]
[null,"Provision for stormwater channels, rainwater downpipes, eaves gutters, etc.","Item"]
[null,"Perimeter fencing, etc","Item"]
[]
[{"v":16,"d":"16.00"},"ELECTRICAL WORKS"]
[null,"Inspection and refurbishment of existing electrical works, complete including  the issuing of CoC.","Item"]
[]
[{"v":17,"d":"17.00"},"DIRECTIONAL SIGNAGE"]
[null,"Provide directional signage, etc","Item"]
[]
[{"v":18,"d":"18.00"},"MINOR REFURBISHMENT"]
[null,"Rebuilding carports, including all additional structural maintenance required sealing and fixing cracks","Item"]
[]
[{"v":19,"d":"19.00"},"TEMPORARY CLASSROOMS"]
[null,"Budgetary allowance for temporary classrooms ","Item"]
[]
[{"v":20,"d":"20.00"},"PRELIMINARIES AND GENERAL"]
[null,"Contractor to allow for related P&G costs ","Item"]
[]
[{"v":21,"d":"21.00"},"CONTENGENCIES"]
[null,"Add 10% Contingencies to be used at client's discretion","Item"]
[]
[]
[null,"Total Carried to Final Summary",null,{"$f":"D6","v":0}]

{"sheet":"SAKHILE ","index":5,"n_rows":35,"n_cols":4,"rows_kept":35,"merged":[[0,0,0,3],[1,0,1,3]]}
[]
["SAKHILE SECONDARY SCHOOL"]
["REF","SCOPE","UNIT","PRICE (Excl. VAT)"]
[null,"10  Pit toilets are used by the school as the existing waterborne toilets cannot be utilised due to water challenge"]
[]
[null,"BUILDING WORKS",null,{"$f":"SUM(D8:D33)","v":0}]
[{"v":1,"d":"1.00"},"ALTERATIONS"]
[null,"Removal of existing work including disposal from site, etc.","Item"]
[null,"Repairs and making good of finishes, etc. (Beamfilling, Screed, Plaster Allowance)","Item"]
[null,"Cleaning of all classrooms including ceilings","Item"]
[null,"Servicing existing sanitary fittings, accessories,doors, windows, etc","Item"]
[]
[{"v":2,"d":"2.00"},"WATERPROOFING"]
[null,"Waterproofing to roofs, etc. ","Item"]
[]
[{"v":3,"d":"3.00"},"CEILINGS, PARTITIONS AND ACCESS FLOORING"]
[null,"Installation of ceilings, including cornices, trap doors, etc","Item"]
[]
[{"v":4,"d":"4.00"},"PLUMBING WORKS"]
[null,"Replacement of sanitaryware where necessary. Scope to be verified on site","Item"]
[]
[{"v":5,"d":"5.00"},"PAINTWORK"]
[null,"All paintwork to internal and external walls, including paintwork to ceilings, doors and frames, etc.","Item"]
[]
[{"v":6,"d":"6.00"},"TEMPORARY CLASSROOMS"]
[null,"Budgetary allowance for temporary classrooms ","Item"]
[]
[{"v":7,"d":"7.00"},"PRELIMINARIES AND GENERAL"]
[null,"Contractor to allow for related P&G costs ","Item"]
[]
[{"v":8,"d":"8.00"},"CONTENGENCIES"]
[null,"Add 10% Contingencies to be used at client's discretion","Item"]
[]
[]
[null,"Total Carried to Final Summary",null,{"$f":"D6","v":0}]

{"sheet":"VUTSELANI","index":6,"n_rows":64,"n_cols":4,"rows_kept":64,"merged":[[0,0,0,3],[1,0,1,3]]}
[]
["VUTSELANI PRIMARY SCHOOL"]
["REF","SCOPE","UNIT","PRICE (Excl. VAT)"]
[null,"Renovation of  8 classrooms"]
[]
[null,"BUILDING WORKS",null,{"$f":"SUM(D8:D62)","v":0}]
[{"v":1,"d":"1.00"},"ALTERATIONS"]
[null,"Removal of existing work including disposal from site, etc.","Item"]
[null,"Repairs and making good of finishes, etc. (Beamfilling, Screed, Plaster Allowance)","Item"]
[null,"Cleaning of all classrooms including ceilings","Item"]
[null,"Servicing existing sanitary fittings, accessories,doors, windows, etc","Item"]
[]
[{"v":2,"d":"2.00"},"EARTHWORKS"]
[null,"Excavation or filling under solid floors, disposal of excavted material, compaction, ant proofing, etc","Item"]
[]
[{"v":3,"d":"3.00"},"CONCRETE, FORMWORK AND REINFORCEMENT"]
[null,"Surface beds, mesh reinforcing, expansion joints, thickening out of surface bed under walls and at edges, power floating, broomed finish, etc","Item"]
[]
[{"v":4,"d":"4.00"},"WATERPROOFING"]
[null,"Waterproofing to surface beds, etc. ","Item"]
[]
[{"v":5,"d":"5.00"},"CARPENTRY AND JOINERY"]
[null,"Supply and installation of skirtings, pinning boards, handrails, etc.","Item"]
[null,"Supply and installation of doors, door frames, etc","Item"]
[]
[{"v":6,"d":"6.00"},"CEILINGS, PARTITIONS AND ACCESS FLOORING"]
[null,"Installation of ceilings, including cornices, trap doors, etc","Item"]
[]
[{"v":7,"d":"7.00"},"IRONMONGERY"]
[null,"Door and window components, etc","Item"]
[]
[{"v":8,"d":"8.00"},"METALWORK"]
[null,"Steel door frames, doors, gates, windows, balustrading, handrails, etc","Item"]
[]
[{"v":9,"d":"9.00"},"PLASTERING"]
[null,"Internal, external wall plaster and floor screeds, etc","Item"]
[]
[{"v":10,"d":"10.00"},"GLAZING"]
[null,"3mm clear glass window panes","Item"]
[]
[{"v":11,"d":"11.00"},"PAINTWORK"]
[null,"All paintwork to internal and external walls, including paintwork to ceilings, doors and frames, etc.","Item"]
[]
[{"v":12,"d":"12.00"},"EXTERNAL WORKS"]
[null,"Provision for stormwater channels, rainwater downpipes, eaves gutters, etc.","Item"]
[null,"Paving, etc","Item"]
[]
[{"v":13,"d":"13.00"},"ELECTRICAL WORKS"]
[null,"Inspection and refurbishment of existing electrical works, complete including  the issuing of CoC.","Item"]
[]
[{"v":14,"d":"14.00"},"MINOR REFURBISHMENT"]
[null,"Repairing and filling of all structural cracks with an epoxy based sealant","Item"]
[]
[{"v":15,"d":"15.00"},"TEMPORARY CLASSROOMS"]
[null,"Budgetary allowance for temporary classrooms ","Item"]
[]
[{"v":16,"d":"16.00"},"PRELIMINARIES AND GENERAL"]
[null,"Contractor to allow for related P&G costs ","Item"]
[]
[{"v":17,"d":"17.00"},"CONTENGENCIES"]
[null,"Add 10% Contingencies to be used at client's discretion","Item"]
[]
[]
[null,"Total Carried to Final Summary",null,{"$f":"D6","v":0}]

{"sheet":"CASTEEL","index":7,"n_rows":23,"n_cols":4,"rows_kept":23,"merged":[[1,0,1,3]]}
[]
["CASTEEL PRIMARY SCHOOL"]
["REF","SCOPE","UNIT","PRICE (Excl. VAT)"]
[null,"Demolish 7 existing plain pit toilets to and clear the site to acceptable Health and Environmental standards"]
[]
[null,"BUILDING WORKS",null,{"$f":"SUM(D10:D22)","v":0}]
[{"v":1,"d":"1.00"},"DEMOLITION OF  EXISTING TOILETS"]
[null,"Demolition of existing toilets, including the carting away from site all rubble and including rehabilitating and backfilling redundant pits where applicable","Item"]
[]
[{"v":2,"d":"2.00"},"WATER PROVISION"]
[null,"Provision of borehole including sinking/drilling, testing and equipping with adequate capacity pump and all accessories and including all pipework to connect up to the elevated tanks, etc","Item"]
[]
[{"v":3,"d":"3.00"},"STORAGE TANKS"]
[null,"Provision of Storage tanks on elevated stands including plumbing connections, solar pumps etc","Item"]
[]
[{"v":4,"d":"4.00"},"PRELIMINARIES AND GENERAL"]
[null,"Contractor to allow for related P&G costs ","Item"]
[]
[{"v":5,"d":"5.00"},"CONTINGENCIES"]
[null,"Add 10% Contingencies to be used at client's discretion","Item"]
[]
[]
[null,"Total Carried to Final Summary",null,{"$f":"D6","v":0}]

{"sheet":"D G MASHEGO","index":8,"n_rows":23,"n_cols":4,"rows_kept":23,"merged":[[1,0,1,3]]}
[]
["D G MASHEGO PRIMARY SCHOOL"]
["REF","SCOPE","UNIT","PRICE (Excl. VAT)"]
[null,"Demolish 16 existing plain pit toilets to and clear the site to acceptable Health and Environmental standards"]
[]
[null,"BUILDING WORKS",null,{"$f":"SUM(D10:D22)","v":0}]
[{"v":1,"d":"1.00"},"DEMOLITION OF  EXISTING TOILETS"]
[null,"Demolition of existing toilets, including the carting away from site all rubble and including rehabilitating and backfilling redundant pits where applicable","Item"]
[]
[{"v":2,"d":"2.00"},"WATER PROVISION"]
[null,"Provision of borehole including sinking/drilling, testing and equipping with adequate capacity pump and all accessories and including all pipework to connect up to the elevated tanks, etc","Item"]
[]
[{"v":3,"d":"3.00"},"STORAGE TANKS"]
[null,"Provision of Storage tanks on elevated stands including plumbing connections, solar pumps etc","Item"]
[]
[{"v":4,"d":"4.00"},"PRELIMINARIES AND GENERAL"]
[null,"Contractor to allow for related P&G costs ","Item"]
[]
[{"v":5,"d":"5.00"},"CONTINGENCIES"]
[null,"Add 10% Contingencies to be used at client's discretion","Item"]
[]
[]
[null,"Total Carried to Final Summary",null,{"$f":"D6","v":0}]

{"sheet":"DUMISANI","index":9,"n_rows":23,"n_cols":4,"rows_kept":23,"merged":[[1,0,1,3]]}
[]
["DUMISANI HIGH SCHOOL"]
["REF","SCOPE","UNIT","PRICE (Excl. VAT)"]
[null,"Demolish 4 existing plain pit toilets to and clear the site to acceptable Health and Environmental standards"]
[]
[null,"BUILDING WORKS",null,{"$f":"SUM(D10:D22)","v":0}]
[{"v":1,"d":"1.00"},"DEMOLITION OF  EXISTING TOILETS"]
[null,"Demolition of existing toilets, including the carting away from site all rubble and including rehabilitating and backfilling redundant pits where applicable","Item"]
[]
[{"v":2,"d":"2.00"},"WATER PROVISION"]
[null,"Provision of borehole including sinking/drilling, testing and equipping with adequate capacity pump and all accessories and including all pipework to connect up to the elevated tanks, etc","Item"]
[]
[{"v":3,"d":"3.00"},"STORAGE TANKS"]
[null,"Provision of Storage tanks on elevated stands including plumbing connections, solar pumps etc","Item"]
[]
[{"v":4,"d":"4.00"},"PRELIMINARIES AND GENERAL"]
[null,"Contractor to allow for related P&G costs ","Item"]
[]
[{"v":5,"d":"5.00"},"CONTINGENCIES"]
[null,"Add 10% Contingencies to be used at client's discretion","Item"]
[]
[]
[null,"Total Carried to Final Summary",null,{"$f":"D6","v":0}]

{"sheet":"HLANGALEZWE","index":10,"n_rows":23,"n_cols":4,"rows_kept":23,"merged":[[1,0,1,3]]}
[]
["HLANGALEZWE PRIMARY SCHOOL"]
["REF","SCOPE","UNIT","PRICE (Excl. VAT)"]
[null,"Demolish 8 existing plain pit toilets to and clear the site to acceptable Health and Environmental standards"]
[]
[null,"BUILDING WORKS",null,{"$f":"SUM(D10:D22)","v":0}]
[{"v":1,"d":"1.00"},"DEMOLITION OF  EXISTING TOILETS"]
[null,"Demolition of existing toilets, including the carting away from site all rubble and including rehabilitating and backfilling redundant pits where applicable","Item"]
[]
[{"v":2,"d":"2.00"},"WATER PROVISION"]
[null,"Provision of borehole including sinking/drilling, testing and equipping with adequate capacity pump and all accessories and including all pipework to connect up to the elevated tanks, etc","Item"]
[]
[{"v":3,"d":"3.00"},"STORAGE TANKS"]
[null,"Provision of Storage tanks on elevated stands including plumbing connections, solar pumps etc","Item"]
[]
[{"v":4,"d":"4.00"},"PRELIMINARIES AND GENERAL"]
[null,"Contractor to allow for related P&G costs ","Item"]
[]
[{"v":5,"d":"5.00"},"CONTINGENCIES"]
[null,"Add 10% Contingencies to be used at client's discretion","Item"]
[]
[]
[null,"Total Carried to Final Summary",null,{"$f":"D6","v":0}]

{"sheet":"LEKANANG","index":11,"n_rows":23,"n_cols":4,"rows_kept":23,"merged":[[1,0,1,3]]}
[]
["LEKANANG PRIMARY SCHOOL"]
["REF","SCOPE","UNIT","PRICE (Excl. VAT)"]
[null,"Demolish 10 existing plain pit toilets to and clear the site to acceptable Health and Environmental standards"]
[]
[null,"BUILDING WORKS",null,{"$f":"SUM(D10:D22)","v":0}]
[{"v":1,"d":"1.00"},"DEMOLITION OF  EXISTING TOILETS"]
[null,"Demolition of existing toilets, including the carting away from site all rubble and including rehabilitating and backfilling redundant pits where applicable","Item"]
[]
[{"v":2,"d":"2.00"},"WATER PROVISION"]
[null,"Provision of borehole including sinking/drilling, testing and equipping with adequate capacity pump and all accessories and including all pipework to connect up to the elevated tanks, etc","Item"]
[]
[{"v":3,"d":"3.00"},"STORAGE TANKS"]
[null,"Provision of Storage tanks on elevated stands including plumbing connections, solar pumps etc","Item"]
[]
[{"v":4,"d":"4.00"},"PRELIMINARIES AND GENERAL"]
[null,"Contractor to allow for related P&G costs ","Item"]
[]
[{"v":5,"d":"5.00"},"CONTINGENCIES"]
[null,"Add 10% Contingencies to be used at client's discretion","Item"]
[]
[]
[null,"Total Carried to Final Summary",null,{"$f":"D6","v":0}]

{"sheet":"LUKA","index":12,"n_rows":23,"n_cols":4,"rows_kept":23,"merged":[[1,0,1,3]]}
[]
["LUKA PRIMARY SCHOOL"]
["REF","SCOPE","UNIT","PRICE (Excl. VAT)"]
[null,"Demolish 20 existing plain pit toilets to and clear the site to acceptable Health and Environmental standards"]
[]
[null,"BUILDING WORKS",null,{"$f":"SUM(D10:D22)","v":0}]
[{"v":1,"d":"1.00"},"DEMOLITION OF  EXISTING TOILETS"]
[null,"Demolition of existing toilets, including the carting away from site all rubble and including rehabilitating and backfilling redundant pits where applicable","Item"]
[]
[{"v":2,"d":"2.00"},"WATER PROVISION"]
[null,"Provision of borehole including sinking/drilling, testing and equipping with adequate capacity pump and all accessories and including all pipework to connect up to the elevated tanks, etc","Item"]
[]
[{"v":3,"d":"3.00"},"STORAGE TANKS"]
[null,"Provision of Storage tanks on elevated stands including plumbing connections, solar pumps etc","Item"]
[]
[{"v":4,"d":"4.00"},"PRELIMINARIES AND GENERAL"]
[null,"Contractor to allow for related P&G costs ","Item"]
[]
[{"v":5,"d":"5.00"},"CONTINGENCIES"]
[null,"Add 10% Contingencies to be used at client's discretion","Item"]
[]
[]
[null,"Total Carried to Final Summary",null,{"$f":"D6","v":0}]

{"sheet":"M O MASHEGO","index":13,"n_rows":23,"n_cols":4,"rows_kept":23,"merged":[[1,0,1,3]]}
[]
["M O MASHEGO PRIMARY SCHOOL"]
["REF","SCOPE","UNIT","PRICE (Excl. VAT)"]
[null,"Demolish 12 existing plain pit toilets to and clear the site to acceptable Health and Environmental standards"]
[]
[null,"BUILDING WORKS",null,{"$f":"SUM(D10:D22)","v":0}]
[{"v":1,"d":"1.00"},"DEMOLITION OF  EXISTING TOILETS"]
[null,"Demolition of existing toilets, including the carting away from site all rubble and including rehabilitating and backfilling redundant pits where applicable","Item"]
[]
[{"v":2,"d":"2.00"},"WATER PROVISION"]
[null,"Provision of borehole including sinking/drilling, testing and equipping with adequate capacity pump and all accessories and including all pipework to connect up to the elevated tanks, etc","Item"]
[]
[{"v":3,"d":"3.00"},"STORAGE TANKS"]
[null,"Provision of Storage tanks on elevated stands including plumbing connections, solar pumps etc","Item"]
[]
[{"v":4,"d":"4.00"},"PRELIMINARIES AND GENERAL"]
[null,"Contractor to allow for related P&G costs ","Item"]
[]
[{"v":5,"d":"5.00"},"CONTINGENCIES"]
[null,"Add 10% Contingencies to be used at client's discretion","Item"]
[]
[]
[null,"Total Carried to Final Summary",null,{"$f":"D6","v":0}]

{"sheet":"M P MOKOENA","index":14,"n_rows":23,"n_cols":4,"rows_kept":23,"merged":[[1,0,1,3]]}
[]
["M P MOKOENA PRIMARY SCHOOL"]
["REF","SCOPE","UNIT","PRICE (Excl. VAT)"]
[null,"Demolish 4 existing plain pit toilets to and clear the site to acceptable Health and Environmental standards"]
[]
[null,"BUILDING WORKS",null,{"$f":"SUM(D10:D22)","v":0}]
[{"v":1,"d":"1.00"},"DEMOLITION OF  EXISTING TOILETS"]
[null,"Demolition of existing toilets, including the carting away from site all rubble and including rehabilitating and backfilling redundant pits where applicable","Item"]
[]
[{"v":2,"d":"2.00"},"WATER PROVISION"]
[null,"Provision of borehole including sinking/drilling, testing and equipping with adequate capacity pump and all accessories and including all pipework to connect up to the elevated tanks, etc","Item"]
[]
[{"v":3,"d":"3.00"},"STORAGE TANKS"]
[null,"Provision of Storage tanks on elevated stands including plumbing connections, solar pumps etc","Item"]
[]
[{"v":4,"d":"4.00"},"PRELIMINARIES AND GENERAL"]
[null,"Contractor to allow for related P&G costs ","Item"]
[]
[{"v":5,"d":"5.00"},"CONTINGENCIES"]
[null,"Add 10% Contingencies to be used at client's discretion","Item"]
[]
[]
[null,"Total Carried to Final Summary",null,{"$f":"D6","v":0}]

{"sheet":"MARIPE","index":15,"n_rows":23,"n_cols":4,"rows_kept":23,"merged":[[1,0,1,3]]}
[]
["MARIPE SENIOR SECONDARY SCHOOL"]
["REF","SCOPE","UNIT","PRICE (Excl. VAT)"]
[null,"Demolish 16 existing plain pit toilets to and clear the site to acceptable Health and Environmental standards"]
[]
[null,"BUILDING WORKS",null,{"$f":"SUM(D10:D22)","v":0}]
[{"v":1,"d":"1.00"},"DEMOLITION OF  EXISTING TOILETS"]
[null,"Demolition of existing toilets, including the carting away from site all rubble and including rehabilitating and backfilling redundant pits where applicable","Item"]
[]
[{"v":2,"d":"2.00"},"WATER PROVISION"]
[null,"Provision of borehole including sinking/drilling, testing and equipping with adequate capacity pump and all accessories and including all pipework to connect up to the elevated tanks, etc","Item"]
[]
[{"v":3,"d":"3.00"},"STORAGE TANKS"]
[null,"Provision of Storage tanks on elevated stands including plumbing connections, solar pumps etc","Item"]
[]
[{"v":4,"d":"4.00"},"PRELIMINARIES AND GENERAL"]
[null,"Contractor to allow for related P&G costs ","Item"]
[]
[{"v":5,"d":"5.00"},"CONTINGENCIES"]
[null,"Add 10% Contingencies to be used at client's discretion","Item"]
[]
[]
[null,"Total Carried to Final Summary",null,{"$f":"D6","v":0}]

{"sheet":"MATHUPA","index":16,"n_rows":23,"n_cols":4,"rows_kept":23,"merged":[[1,0,1,3]]}
[]
["MATHUPA LOWER AND HIGHER PRIMARY SCHOOL"]
["REF","SCOPE","UNIT","PRICE (Excl. VAT)"]
[null,"Demolish 4 existing plain pit toilets to and clear the site to acceptable Health and Environmental standards"]
[]
[null,"BUILDING WORKS",null,{"$f":"SUM(D10:D22)","v":0}]
[{"v":1,"d":"1.00"},"DEMOLITION OF  EXISTING TOILETS"]
[null,"Demolition of existing toilets, including the carting away from site all rubble and including rehabilitating and backfilling redundant pits where applicable","Item"]
[]
[{"v":2,"d":"2.00"},"WATER PROVISION"]
[null,"Provision of borehole including sinking/drilling, testing and equipping with adequate capacity pump and all accessories and including all pipework to connect up to the elevated tanks, etc","Item"]
[]
[{"v":3,"d":"3.00"},"STORAGE TANKS"]
[null,"Provision of Storage tanks on elevated stands including plumbing connections, solar pumps etc","Item"]
[]
[{"v":4,"d":"4.00"},"PRELIMINARIES AND GENERAL"]
[null,"Contractor to allow for related P&G costs ","Item"]
[]
[{"v":5,"d":"5.00"},"CONTINGENCIES"]
[null,"Add 10% Contingencies to be used at client's discretion","Item"]
[]
[]
[null,"Total Carried to Final Summary",null,{"$f":"D6","v":0}]